bitfinex-derivatives/quotes_ETHF0:USTF0_20241022
["timestamp","ask_amount","ask_price","bid_price","bid_amount"]
[1729589047540,0.38173,2621.1,2620.9,0.38175]
[1729589047845,0.38174,2621.0,2620.8,0.38176]
[1729589048144,0.38173,2621.1,2620.8,0.38176]
[1729589048448,0.38174,2621.0,2620.8,0.38176]
[1729589048634,5.5878,2621.3,2620.4,3.2078]
[1729589048635,0.38175,2620.9,2620.7,0.38178]
[1729589048840,0.38175,2620.9,2620.4,3.2078]
[1729589048841,0.3818,2620.6,2620.4,0.38182]
[1729589049844,0.38181,2620.5,2620.2,0.38185]
[1729589050040,5.5878,2620.7,2620.3,0.38183]
[1729589050345,0.38182,2620.5,2620.2,0.38185]
[1729589050744,0.38182,2620.5,2620.3,0.38184]
[1729589051049,0.38183,2620.4,2620.2,0.38185]
[1729589051544,0.38181,2620.6,2620.4,0.38182]
[1729589051739,5.5878,2620.7,2619.8,0.95478]
[1729589052144,5.5878,2620.7,2620.2,0.38185]
[1729589052448,0.38181,2620.5,2620.3,0.38183]
[1729589052644,5.5878,2620.7,2620.3,0.38183]
[1729589052839,5.5878,2620.7,2619.8,0.95478]
[1729589053147,0.3818,2620.6,2619.7,46.3878]
[1729589053363,0.3818,2620.6,2620.4,0.38182]
[1729589053648,3.2078,2620.7,2619.9,3.33475]
[1729589053839,3.2078,2620.6,2620.5,0.38181]
[1729589054041,2.38,2620.9,2620.2,0.95465]
[1729589054346,0.38177,2620.8,2620.6,0.38179]
[1729589054540,2.76176,2620.9,2620.6,0.38179]
[1729589055249,3.2078,2620.7,2620.1,3.2078]
[1729589055546,3.2078,2620.7,2620.6,0.3818]
[1729589056344,3.2078,2620.7,2620.1,3.2078]
[1729589056545,3.2078,2620.7,2620.6,0.3818]
[1729589057050,3.2078,2620.7,2620.1,3.2078]
[1729589057354,3.2078,2620.7,2620.6,0.3818]
[1729589057843,3.2078,2620.7,2620.5,0.3818]
[1729589058043,0.3818,2620.6,2620.4,0.38182]
[1729589058651,0.3818,2620.6,2619.9,6.54255]
[1729589058854,0.3818,2620.6,2620.4,0.38182]
[1729589059642,3.58959,2620.7,2620.5,0.38181]
[1729589059854,0.3818,2620.6,2620.4,0.38182]
[1729589060645,3.58959,2620.7,2620.4,0.38182]
[1729589061149,0.3818,2620.6,2620.4,0.38182]
[1729589061351,3.2078,2620.7,2619.9,6.54255]
[1729589061552,2.38,2620.5,2619.9,3.2078]
[1729589061748,0.38183,2620.4,2619.9,3.2078]
[1729589061944,0.38183,2620.4,2620.2,0.38185]
[1729589062341,0.38182,2620.5,2620.3,0.38183]
[1729589062555,0.38182,2620.5,2620.2,0.38185]
[1729589063554,5.5878,2620.7,2619.9,3.2078]
[1729589063961,0.38182,2620.5,2620.3,0.38183]
[1729589064156,0.38181,2620.6,2620.4,0.38183]
[1729589064459,0.38182,2620.5,2620.3,0.38183]
[1729589064649,5.5878,2620.7,2619.9,3.2078]
[1729589064851,0.38181,2620.6,2620.3,0.38183]
[1729589065360,7.2368,2620.7,2620.4,0.38183]
[1729589065663,0.38181,2620.5,2620.4,0.38183]
[1729589065860,0.3818,2620.6,2620.4,0.38183]
[1729589066066,3.2078,2620.7,2620.6,0.3818]
[1729589066254,3.2078,2621.2,2620.6,3.2078]
[1729589066455,2.38,2621.7,2620.9,3.2078]
[1729589066655,2.76164,2621.7,2621.5,0.38166]
[1729589066858,2.38,2621.7,2621.6,0.38165]
[1729589067064,2.76164,2621.7,2621.5,0.38166]
[1729589067273,2.38,2621.7,2621.1,0.38172]
[1729589067565,2.38,2621.5,2621.4,0.38167]
[1729589068058,2.38,2621.7,2621.6,0.38165]
[1729589069263,2.38,2621.7,2621.0,40.8]
[1729589069466,2.38,2621.7,2621.6,0.38165]
[1729589069658,4.7868,2621.9,2621.7,0.38163]
[1729589069659,3.58941,2621.9,2621.7,0.38163]
[1729589069864,3.58941,2621.9,2621.2,4.16208]
[1729589069865,3.2078,2621.9,2621.8,0.38162]
[1729589075772,5.5878,2622.5,2621.8,7.40382]
[1729589076068,3.2078,2622.5,2622.4,0.38153]
[1729589076376,2.38,2622.7,2622.6,0.38151]
[1729589076575,3.2078,2622.8,2622.7,0.38149]
[1729589076871,3.2078,2622.8,2622.3,0.95387]
[1729589076872,3.2078,2623.2,2622.5,3.33381]
[1729589077072,3.2078,2623.2,2623.0,0.38143]
[1729589077382,3.2078,2623.2,2623.1,0.38143]
[1729589077568,3.58923,2623.2,2623.0,0.38145]
[1729589077773,5.96922,2623.2,2622.9,0.38145]
[1729589077972,0.38144,2623.1,2622.8,0.38147]
[1729589078172,0.38144,2623.1,2622.9,0.38146]
[1729589078673,5.96923,2623.2,2622.9,0.38146]
[1729589079170,5.5878,2623.2,2622.5,41.75381]
[1729589079368,5.96923,2623.2,2622.9,0.38146]
[1729589079576,5.96923,2623.2,2623.0,0.38145]
[1729589079774,5.96923,2623.2,2622.8,0.38147]
[1729589079775,0.38144,2623.1,2622.8,0.38147]
[1729589080178,5.96923,2623.2,2622.9,0.38146]
[1729589080375,0.38143,2623.1,2622.9,0.38146]
[1729589080577,5.96923,2623.2,2622.9,0.38146]
[1729589081182,0.38143,2623.1,2622.9,0.38146]
[1729589081371,5.5878,2623.2,2622.9,0.38146]
[1729589081372,5.96923,2623.2,2622.9,0.38146]
[1729589081578,5.96923,2623.2,2622.4,3.2078]
[1729589081776,5.5878,2623.2,2623.0,0.38145]
[1729589081983,5.96922,2623.2,2622.9,0.38145]
[1729589082479,0.38144,2623.1,2622.8,0.38147]
[1729589082780,5.96923,2623.2,2622.9,0.38145]
[1729589083374,5.5878,2623.2,2622.4,3.2078]
[1729589083581,0.38146,2622.9,2622.7,0.38149]
[1729589083778,7.1658,2623.2,2622.4,3.2078]
[1729589083970,0.38144,2623.1,2622.8,0.38147]
[1729589084870,0.38145,2623.0,2622.7,0.38148]
[1729589085074,0.38145,2623.0,2622.4,3.2078]
[1729589085273,0.38144,2623.1,2622.9,0.38146]
[1729589085478,0.38147,2622.9,2622.7,0.38149]
[1729589085672,0.38145,2623.0,2622.7,0.38148]
[1729589085874,7.1658,2623.2,2622.4,3.2078]
[1729589085875,2.76147,2622.9,2622.6,0.3815]
[1729589086079,3.2078,2622.8,2622.1,3.2078]
[1729589086278,3.2078,2622.8,2621.9,0.95402]
[1729589086279,0.38151,2622.6,2621.9,0.95402]
[1729589086675,0.38151,2622.6,2622.4,0.38153]
[1729589086876,2.38,2622.7,2622.4,0.38153]
[1729589087081,2.7615,2622.7,2621.9,0.95402]
[1729589087384,2.7615,2622.7,2622.0,4.16179]
[1729589087578,2.38,2622.7,2622.5,0.38151]
[1729589087775,2.76149,2622.7,2622.5,0.38151]
[1729589087974,2.38,2622.7,2621.9,0.95402]
[1729589088178,1.578,2623.2,2622.2,0.38156]
[1729589088179,0.38154,2622.4,2622.2,0.38156]
[1729589088488,5.96933,2622.5,2622.3,0.38155]
[1729589088886,5.5878,2622.5,2621.7,0.95407]
[1729589089180,0.38153,2622.4,2622.2,0.38156]
[1729589090487,0.38153,2622.4,2621.6,3.33411]
[1729589090488,0.38153,2622.4,2622.3,0.38154]
[1729589090690,5.5878,2622.5,2622.3,0.38154]
[1729589090887,5.5878,2622.5,2622.4,0.38153]
[1729589091080,5.5878,2622.5,2621.9,0.38161]
[1729589091383,5.96933,2622.5,2622.3,0.38154]
[1729589091686,0.38154,2622.4,2622.2,0.38155]
[1729589091882,5.5878,2622.5,2621.5,3.2078]
[1729589091883,2.38,2622.3,2621.5,3.2078]
[1729589092081,1.578,2622.7,2621.2,3.2078]
[1729589092082,3.2078,2621.9,2621.2,3.2078]
[1729589092284,3.2078,2622.0,2621.8,0.38162]
[1729589092492,3.5894,2622.0,2621.8,0.38162]
[1729589092688,3.2078,2622.0,2621.4,2.38]
[1729589092883,0.38161,2621.9,2621.4,2.38]
[1729589093091,0.38161,2621.9,2621.7,0.38163]
[1729589093589,3.5894,2622.0,2621.7,0.38163]
[1729589093984,3.2078,2622.0,2621.7,0.38163]
[1729589094186,3.2078,2622.0,2621.4,2.38]
[1729589094387,3.5894,2622.0,2621.7,0.38162]
[1729589094686,3.5894,2622.0,2621.8,0.38162]
[1729589094986,1.95959,2622.1,2621.4,2.38]
[1729589095193,1.95959,2622.1,2621.9,0.3816]
[1729589095387,5.5878,2622.3,2621.4,2.38]
[1729589095594,5.16736,2622.3,2622.1,0.38157]
[1729589095903,3.2078,2622.3,2622.2,0.38156]
[1729589096193,3.2078,2622.3,2621.8,2.38]
[1729589096194,3.2078,2622.7,2622.6,0.3815]
[1729589096400,3.2078,2622.7,2622.1,4.16173]
[1729589096787,3.2078,2622.7,2622.6,0.38151]
[1729589097199,9.4006,2622.7,2622.1,3.2078]
[1729589097397,0.38157,2622.2,2622.0,0.38159]
[1729589097592,2.38,2622.2,2621.5,40.8]
[1729589097897,0.3816,2622.0,2621.8,0.38162]
[1729589098197,3.5894,2622.0,2621.8,0.38162]
[1729589098399,0.38161,2621.9,2621.8,0.38162]
[1729589099300,0.38161,2621.9,2621.7,0.38163]
[1729589099495,3.2078,2622.0,2621.8,0.38162]
[1729589099496,3.5894,2622.0,2621.8,0.38162]
[1729589100400,5.5878,2622.0,2621.3,5.5878]
[1729589100598,5.5878,2622.0,2621.3,2.38]
[1729589100791,3.2078,2622.0,2621.3,2.38]
[1729589100996,0.95375,2622.7,2621.7,2.38]
[1729589100997,5.14736,2622.3,2621.7,2.38]
[1729589101196,3.58936,2622.3,2621.7,2.38]
[1729589101594,3.2078,2622.3,2622.2,0.38156]
[1729589101997,3.58936,2622.3,2622.1,0.38157]
[1729589102306,0.38155,2622.3,2622.0,0.38158]
[1729589102502,2.38,2622.4,2622.0,0.38158]
[1729589102796,2.38,2622.4,2621.7,2.38]
[1729589102797,0.38155,2622.3,2622.1,0.38157]
[1729589103004,2.76154,2622.4,2622.2,0.38156]
[1729589103200,4.7658,2622.6,2621.7,6.54187]
[1729589103201,3.2078,2622.6,2621.7,2.38]
[1729589103397,3.2078,2622.6,2622.5,0.38152]
[1729589103998,3.2078,2623.0,2622.4,2.38]
[1729589104206,0.38146,2622.9,2622.8,0.38148]
[1729589104401,3.58925,2623.0,2622.8,0.38148]
[1729589105101,3.2078,2623.0,2622.9,0.38146]
[1729589106000,5.5878,2623.5,2622.7,0.95371]
[1729589106206,0.3814,2623.4,2622.7,0.95371]
[1729589106397,0.3814,2623.4,2623.2,0.38142]
[1729589106706,0.3814,2623.4,2622.7,0.95371]
[1729589107004,0.3814,2623.4,2623.1,0.38142]
[1729589107307,0.38139,2623.4,2623.2,0.38141]
[1729589107714,5.5878,2623.5,2622.6,2.38]
[1729589107910,3.58922,2623.2,2623.0,0.38144]
[1729589108097,2.38,2623.1,2622.5,3.2078]
[1729589108303,2.38,2623.1,2622.6,0.3815]
[1729589108502,2.38,2623.1,2622.2,43.18]
[1729589108810,3.2078,2622.9,2622.8,0.38147]
[1729589109302,3.2078,2622.9,2622.7,0.38148]
[1729589109508,3.2078,2622.9,2622.8,0.38148]
[1729589109800,3.2078,2622.9,2622.2,43.18]
[1729589110007,0.38143,2623.2,2622.9,0.38146]
[1729589110200,5.5878,2623.3,2622.4,2.38]
[1729589110201,0.38144,2623.1,2622.8,0.38147]
[1729589110603,0.38144,2623.1,2622.4,2.38]
[1729589110604,0.38142,2623.2,2622.9,0.38145]
[1729589110795,2.38,2623.1,2622.9,0.38145]
[1729589111003,3.58926,2623.0,2622.2,44.17281341]
[1729589111203,3.58926,2623.0,2622.3,0.99281341]
[1729589111408,0.38146,2622.9,2622.3,0.99281341]
[1729589111801,3.58926,2623.0,2622.7,0.38148]
[1729589112206,3.2078,2623.0,2622.4,3.37281341]
[1729589112400,3.2078,2623.0,2622.9,0.38146]
[1729589112906,3.2078,2623.0,2622.8,0.38147]
[1729589113106,3.2078,2623.0,2622.9,0.38146]
[1729589114908,3.2078,2623.4,2622.9,3.8128]
[1729589115108,0.38141,2623.3,2623.0,0.38144]
[1729589115410,0.38141,2623.3,2623.1,0.38143]
[1729589117103,0.38144,2623.1,2622.9,0.38146]
[1729589117509,0.38144,2623.1,2622.5,0.95378]
[1729589117808,2.38,2623.3,2622.5,4.16158]
[1729589118008,0.38143,2623.2,2622.5,4.16158]
[1729589118311,0.38143,2623.2,2623.0,0.38144]
[1729589119415,2.38,2623.3,2622.5,6.54158]
[1729589119610,0.38143,2623.2,2623.0,0.38144]
[1729589121707,0.38142,2623.2,2623.0,0.38144]
[1729589122101,5.5878,2623.3,2623.0,0.38145]
[1729589122307,0.38142,2623.2,2623.0,0.38145]
[1729589123314,5.5878,2623.3,2622.5,6.54158]
[1729589123502,5.5878,2623.3,2623.1,0.38142]
[1729589123708,0.38142,2623.2,2623.1,0.38142]
[1729589124109,5.96921,2623.3,2622.5,6.54158]
[1729589124411,5.96921,2623.3,2623.2,0.38142]
[1729589124807,5.96921,2623.3,2622.7,0.95374]
[1729589125012,5.96921,2623.3,2623.1,0.38142]
[1729589125209,5.96921,2623.3,2623.2,0.38142]
[1729589125408,3.2078,2624.1,2623.0,5.5878]
[1729589125708,0.38124,2624.5,2624.2,0.38126]
[1729589125907,5.5878,2624.7,2624.3,0.38125]
[1729589125908,0.38122,2624.6,2624.3,0.38125]
[1729589126106,5.5878,2624.7,2623.9,5.5878]
[1729589126305,0.38126,2624.4,2624.1,0.38128]
[1729589126706,0.38126,2624.4,2624.2,0.38127]
[1729589127006,0.38125,2624.4,2623.9,5.5878]
[1729589127212,0.38125,2624.4,2624.1,0.38128]
[1729589127606,0.38125,2624.4,2623.9,5.5878]
[1729589127816,0.38125,2624.4,2624.2,0.38127]
[1729589128207,0.38122,2624.6,2623.9,5.5878]
[1729589128514,0.38122,2624.6,2624.3,0.38125]
[1729589129618,0.38122,2624.6,2624.4,0.38124]
[1729589130008,3.2078,2624.7,2624.5,0.38122]
[1729589130217,0.38122,2624.6,2624.3,0.38125]
[1729589130416,3.2078,2624.7,2624.3,0.38125]
[1729589130617,0.38124,2624.5,2624.3,0.38125]
[1729589130820,3.2078,2624.7,2624.4,0.38124]
[1729589130821,0.38122,2624.6,2624.4,0.38124]
[1729589131117,0.38122,2624.6,2624.1,2.38]
[1729589131312,0.38122,2624.6,2624.4,0.38124]
[1729589131708,3.58901,2624.7,2624.5,0.38123]
[1729589131913,3.2078,2624.7,2624.1,2.38]
[1729589132117,3.58901,2624.7,2624.4,0.38123]
[1729589132312,3.2078,2624.7,2624.1,2.38]
[1729589132716,0.38126,2624.4,2624.0,0.3813]
[1729589133019,0.38128,2624.2,2623.9,0.38131]
[1729589133222,5.5878,2624.3,2623.9,0.38131]
[1729589133522,0.38129,2624.1,2623.9,0.38131]
[1729589133818,3.58906,2624.3,2624.1,0.38128]
[1729589134016,3.58906,2624.3,2623.7,2.38]
[1729589134211,3.2078,2624.3,2624.0,0.3813]
[1729589134413,3.58907,2624.3,2624.1,0.38128]
[1729589134619,3.2078,2624.3,2624.0,0.3813]
[1729589134820,3.58907,2624.3,2624.0,0.3813]
[1729589135022,0.38127,2624.2,2624.0,0.3813]
[1729589135817,0.38131,2624.0,2623.8,0.38133]
[1729589136423,3.2078,2624.3,2623.5,2.38]
[1729589136619,0.38129,2624.2,2623.9,0.38131]
[1729589136917,3.2078,2624.3,2623.9,0.38131]
[1729589137117,0.38128,2624.2,2623.9,0.38131]
[1729589137518,0.38129,2624.1,2623.9,0.38131]
[1729589140624,0.38131,2624.0,2623.8,0.38132]
[1729589141218,0.38129,2624.1,2623.9,0.38131]
[1729589141820,0.38129,2624.1,2623.3,4.1613]
[1729589141821,3.2078,2624.0,2623.6,0.38135]
[1729589142028,0.38138,2623.5,2623.3,0.38139]
[1729589142226,3.2078,2623.7,2623.3,2.38]
[1729589142531,0.38132,2623.9,2623.7,0.38134]
[1729589142825,0.38133,2623.9,2623.7,0.38134]
[1729589143019,3.2078,2624.0,2623.7,0.38134]
[1729589143327,0.38135,2623.7,2623.5,0.38136]
[1729589143531,3.2078,2624.0,2623.3,2.38]
[1729589144021,0.38133,2623.9,2623.7,0.38134]
[1729589144817,3.2078,2624.0,2623.3,2.38]
[1729589145026,3.2078,2623.7,2623.4,0.38138]
[1729589145320,0.38137,2623.6,2623.4,0.38138]
[1729589145526,0.38137,2623.6,2623.5,0.38137]
[1729589145926,0.38137,2623.6,2623.4,0.38138]
[1729589146135,0.38139,2623.4,2623.2,0.3814]
[1729589146334,3.58915,2623.7,2623.5,0.38137]
[1729589147223,0.38135,2623.7,2623.5,0.38137]
[1729589147424,3.54503427,2624.0,2623.5,0.38137]
[1729589147930,0.38136,2623.6,2623.5,0.38137]
[1729589148129,0.38143,2623.2,2623.0,3.58924]
[1729589148427,0.38143,2623.1,2623.0,3.2078]
[1729589148631,3.2078,2623.3,2622.7,3.2078]
[1729589148823,0.38144,2623.1,2622.9,0.38146]
[1729589149225,3.2078,2623.3,2622.8,2.38]
[1729589149424,0.38142,2623.2,2623.1,0.38142]
[1729589149622,0.3814,2623.4,2623.2,0.38141]
[1729589149932,0.38139,2623.4,2623.3,0.3814]
[1729589151330,0.38139,2623.4,2623.2,0.38141]
[1729589152036,0.3814,2623.4,2623.2,0.38142]
[1729589153128,0.38141,2623.3,2623.1,0.38143]
[1729589154025,0.38144,2623.1,2623.0,0.38145]
[1729589154426,3.2078,2623.3,2623.2,0.38142]
[1729589155131,0.38139,2623.4,2623.2,0.38142]
[1729589155432,0.3814,2623.3,2623.1,0.38143]
[1729589155639,0.3814,2623.3,2623.2,0.38142]
[1729589155827,0.3814,2623.3,2623.1,0.38143]
[1729589156025,0.3814,2623.3,2622.8,2.38]
[1729589156026,0.3814,2623.3,2623.2,0.38142]
[1729589157835,3.2078,2623.5,2623.2,0.38142]
[1729589158033,0.38139,2623.4,2622.9,0.38146]
[1729589158235,0.38141,2623.3,2623.1,0.38142]
[1729589158432,0.38141,2623.3,2623.2,0.38142]
[1729589158833,0.38141,2623.3,2623.1,0.38142]
[1729589160034,3.2078,2623.5,2622.8,2.38]
[1729589160241,0.38144,2623.1,2622.9,0.38145]
[1729589160735,0.38142,2623.2,2623.1,0.38143]
[1729589162439,3.54096724,2623.5,2623.4,0.38139]
[1729589162440,3.2078,2623.5,2623.4,0.38139]
[1729589162744,3.2078,2623.5,2623.4,2.76139]
[1729589162941,0.38134,2623.8,2623.5,0.38137]
[1729589163146,0.72370884,2623.8,2623.6,0.38135]
[1729589163542,0.34236884,2623.8,2623.4,2.38]
[1729589163741,3.2078,2623.9,2623.4,2.38]
[1729589164136,3.2078,2623.9,2623.2,2.38]
[1729589164339,2.38,2623.7,2623.3,0.3814]
[1729589164545,0.38138,2623.5,2623.3,0.3814]
[1729589164839,0.38138,2623.5,2623.4,0.38139]
[1729589165836,2.38,2623.7,2623.4,0.38139]
[1729589165837,3.58917,2623.6,2623.4,0.38139]
[1729589166039,3.2078,2623.6,2623.4,0.38139]
[1729589166245,3.2078,2623.6,2623.5,0.38137]
[1729589166246,3.58917,2623.6,2623.5,0.38137]
[1729589166440,3.2078,2623.6,2623.5,0.38137]
[1729589166640,0.71387818,2623.9,2623.5,3.812]
[1729589166847,0.38133,2623.8,2623.7,0.38134]
[1729589167046,0.33255818,2623.9,2623.8,0.38133]
[1729589167246,3.58911,2624.0,2623.9,0.38132]
[1729589167446,3.2078,2624.0,2623.9,0.38132]
[1729589167646,3.2078,2624.0,2623.9,4.19252]
[1729589167850,0.38127,2624.3,2624.1,0.38128]
[1729589168038,0.38127,2624.3,2623.7,3.2078]
[1729589168039,3.2078,2624.4,2624.0,2.38]
[1729589168348,3.2078,2624.4,2624.3,0.38126]
[1729589168841,3.2078,2624.4,2624.3,4.19166]
[1729589169042,3.2078,2624.4,2624.3,0.38126]
[1729589169948,3.2078,2624.4,2624.3,4.19166]
[1729589173552,0.71457529,2624.8,2624.6,0.38121]
[1729589173743,3.589,2624.7,2624.1,0.95321]
[1729589173943,3.589,2624.7,2624.5,0.38122]
[1729589175260,3.2078,2624.7,2624.6,0.38122]
[1729589176551,3.58901,2624.7,2624.5,0.38122]
[1729589176753,3.58901,2624.7,2624.6,0.38122]
[1729589177250,3.2078,2624.7,2624.5,0.38122]
[1729589177447,0.38129,2624.1,2623.9,0.3813]
[1729589177647,2.71782004,2624.9,2623.3,0.95351]
[1729589177648,3.2078,2624.2,2623.4,2.38]
[1729589177843,3.2078,2624.2,2624.1,0.38129]
[1729589178051,3.58907,2624.2,2624.1,0.38129]
[1729589179045,3.2078,2624.2,2623.6,5.5878]
[1729589179251,0.38129,2624.1,2624.0,0.3813]
[1729589180247,3.2078,2624.2,2623.6,5.5878]
[1729589180549,3.2078,2623.9,2623.2,5.5878]
[1729589180763,3.2078,2623.9,2623.0,41.75362]
[1729589180764,5.5878,2623.9,2623.5,0.38137]
[1729589180951,0.38136,2623.7,2623.5,0.38137]
[1729589181247,5.5878,2623.9,2623.1,0.38143]
[1729589181453,0.38138,2623.5,2623.3,0.38139]
[1729589181651,0.38138,2623.5,2623.0,43.18]
[1729589181652,3.2078,2623.6,2623.0,2.38]
[1729589181845,0.38141,2623.3,2623.1,0.38143]
[1729589182042,0.3814,2623.4,2622.9,3.2078]
[1729589182447,0.3814,2623.4,2623.1,0.38142]
[1729589182648,0.3814,2623.4,2622.9,3.2078]
[1729589182848,0.3814,2623.4,2623.2,0.38142]
[1729589183045,0.38138,2623.5,2623.3,0.3814]
[1729589183450,3.2078,2623.6,2623.0,2.38]
[1729589183652,3.58917,2623.6,2623.4,0.38138]
[1729589183850,3.2078,2623.6,2623.0,2.38]
[1729589184051,0.38137,2623.5,2623.0,2.38]
[1729589184254,0.38137,2623.5,2623.2,0.38141]
[1729589184450,3.58917,2623.6,2623.4,0.38138]
[1729589184854,0.38137,2623.5,2623.3,0.3814]
[1729589185253,3.58917,2623.6,2623.3,0.3814]
[1729589185652,3.2078,2623.6,2623.5,0.38137]
[1729589189754,3.58916,2623.6,2623.5,0.38137]
[1729589190155,3.2078,2623.6,2623.5,0.38137]
[1729589190758,3.58916,2623.6,2623.5,0.38137]
[1729589191060,3.2078,2623.6,2623.5,0.38137]
[1729589192567,3.53743001,2624.0,2623.4,2.38]
[1729589192765,3.53743001,2624.0,2623.4,3.33345]
[1729589192766,3.2078,2624.0,2623.4,3.33345]
[1729589192956,3.58911,2624.0,2623.9,0.38132]
[1729589193162,3.2078,2624.0,2623.9,0.38132]
[1729589193764,3.58907,2624.3,2624.1,0.38128]
[1729589194061,3.58907,2624.3,2624.0,0.3813]
[1729589194062,3.2078,2624.3,2624.0,0.3813]
[1729589194362,0.38128,2624.2,2624.0,0.3813]
[1729589195558,0.38129,2624.1,2624.0,0.3813]
[1729589195960,3.8112,2624.1,2623.5,2.38]
[1729589196165,3.2078,2624.0,2623.8,0.38133]
[1729589196565,9.399,2624.0,2623.2,3.2078]
[1729589196767,0.38135,2623.7,2623.6,0.38136]
[1729589196963,5.5878,2624.0,2623.2,3.2078]
[1729589197172,0.38132,2623.9,2623.6,0.38136]
[1729589197467,0.38135,2623.7,2623.1,0.95357]
[1729589197669,0.38135,2623.7,2623.5,0.38137]
[1729589198765,0.38135,2623.7,2623.6,0.38136]
[1729589198964,0.38135,2623.7,2623.5,0.38137]
[1729589200065,3.58916,2623.7,2623.5,0.38137]
[1729589200264,0.38137,2623.6,2623.4,0.38138]
[1729589200572,0.38136,2623.6,2623.5,0.38137]
[1729589201571,5.5878,2624.0,2623.5,0.38137]
[1729589201766,5.5878,2624.0,2623.2,2.38]
[1729589201972,0.38135,2623.7,2623.6,0.38136]
[1729589202175,0.38137,2623.6,2623.4,0.38138]
[1729589202971,3.2078,2623.7,2623.1,3.2078]
[1729589203172,5.92736356,2624.0,2623.2,2.38]
[1729589203372,0.38135,2623.7,2623.5,0.38136]
[1729589203570,0.38135,2623.7,2623.6,0.38136]
[1729589203773,0.38136,2623.6,2623.5,0.38137]
[1729589204172,3.2078,2623.7,2623.5,0.38137]
[1729589204365,3.58915,2623.7,2623.5,0.38137]
[1729589205370,0.38135,2623.7,2623.5,0.38137]
[1729589205775,3.58915,2623.7,2623.5,0.38137]
[1729589205972,3.2078,2623.7,2623.1,3.2078]
[1729589206172,0.38144,2623.1,2622.9,0.38146]
[1729589206374,3.2078,2623.4,2622.8,0.38147]
[1729589206678,0.38145,2623.0,2622.8,0.38147]
[1729589206874,3.2078,2623.4,2622.5,47.87702012]
[1729589207074,0.38147,2622.9,2622.7,0.38148]
[1729589207876,3.2078,2623.1,2622.5,47.87702012]
[1729589208078,0.38146,2623.0,2622.8,0.38147]
[1729589208282,3.2078,2623.1,2622.5,47.87702012]
[1729589208478,0.38145,2623.0,2622.8,0.38147]
[1729589210972,0.38148,2622.8,2622.7,0.38149]
[1729589211174,3.2078,2623.1,2622.7,0.38149]
[1729589211373,0.38148,2622.8,2622.5,46.3878]
[1729589211573,0.38148,2622.8,2622.6,0.38149]
[1729589211983,0.38148,2622.8,2622.7,0.38149]
[1729589212181,3.2078,2623.1,2622.7,0.38149]
[1729589212478,3.2078,2623.1,2622.8,0.38147]
[1729589212780,3.2078,2623.1,2622.5,46.3878]
[1729589212980,3.2078,2623.1,2622.8,0.38147]
[1729589212981,0.38146,2623.0,2622.8,0.38147]
[1729589213374,3.58924,2623.1,2623.0,0.38145]
[1729589213975,3.58924,2623.1,2622.5,46.3878]
[1729589214277,0.38145,2623.0,2622.9,0.38146]
[1729589214776,3.2078,2623.1,2623.0,0.38145]
[1729589214985,3.2078,2623.6,2622.9,2.38]
[1729589215174,3.2078,2623.6,2623.5,0.38137]
[1729589215375,3.58916,2623.6,2623.5,0.38137]
[1729589215572,0.38136,2623.6,2623.5,0.38137]
[1729589215776,0.38136,2623.6,2623.4,0.38138]
[1729589215973,0.38138,2623.5,2623.3,0.38139]
[1729589217075,0.38138,2623.5,2623.4,0.38139]
[1729589217275,0.38138,2623.5,2623.3,0.38139]
[1729589217476,0.3814,2623.4,2622.9,2.38]
[1729589217682,0.38137,2623.5,2623.3,0.3814]
[1729589217876,0.38139,2623.4,2623.3,0.3814]
[1729589218086,3.58917,2623.6,2623.4,0.38138]
[1729589218282,3.58917,2623.6,2623.1,0.38143]
[1729589218485,3.2078,2623.6,2623.5,0.38137]
[1729589218782,3.2078,2623.6,2623.4,0.38138]
[1729589218783,3.58917,2623.6,2623.4,0.38138]
[1729589219079,3.58917,2623.6,2623.5,0.38137]
[1729589219389,3.58917,2623.6,2623.4,0.38138]
[1729589219592,3.58917,2623.6,2623.0,3.2078]
[1729589219881,0.38138,2623.5,2623.4,0.38138]
[1729589220186,3.58917,2623.6,2623.4,0.38138]
[1729589220375,0.38138,2623.5,2623.3,0.3814]
[1729589220577,2.38,2623.5,2622.6,3.2078]
[1729589220781,5.5878,2623.3,2623.0,0.38145]
[1729589220981,0.38142,2623.2,2622.6,3.2078]
[1729589221289,0.38142,2623.2,2623.0,0.38144]
[1729589221485,2.38,2623.5,2623.0,0.38144]
[1729589221687,0.38144,2623.1,2622.9,0.38146]
[1729589221883,0.38147,2622.9,2622.7,0.38148]
[1729589222383,0.38147,2622.9,2622.6,0.38151]
[1729589222583,0.38145,2623.0,2622.5,40.8]
[1729589222790,0.38145,2623.0,2622.8,0.38147]
[1729589223586,0.38146,2622.9,2622.5,40.8]
[1729589223793,0.32908928,2623.1,2622.5,40.8]
[1729589223992,5.5878,2623.3,2622.5,40.8]
[1729589224291,0.38145,2623.0,2622.9,0.38146]
[1729589225188,0.38145,2623.0,2622.8,0.38147]
[1729589225692,5.92522616,2623.3,2622.5,2.38]
[1729589225889,0.38142,2623.2,2623.1,0.38143]
[1729589226090,0.38143,2623.1,2623.0,0.38144]
[1729589226489,0.38143,2623.1,2622.5,2.38]
[1729589226792,0.38143,2623.1,2622.9,0.38146]